[Event "Live Chess"]
[Site "Chess.com"]
[Date "2023.05.21"]
[Round "-"]
[White "ossie57"]
[Black "WelshTiger"]
[Result "0-1"]
[WhiteElo "1904"]
[BlackElo "2314"]
[TimeControl "300"]
[EndTime "4:41:13 PDT"]
[Termination "WelshTiger won by resignation"]

1. d4 {[%clk 0:04:58.3]} 1... d5 {[%clk 0:04:53.5]} 2. Nc3 {[%clk 0:04:56.7]}
2... e6 {[%clk 0:04:53]} 3. Bf4 {[%clk 0:04:55.7]} 3... Bd6 {[%clk 0:04:51.5]}
4. e3 {[%clk 0:04:53.2]} 4... Bxf4 {[%clk 0:04:50.1]} 5. exf4 {[%clk 0:04:53.1]}
5... a6 {[%clk 0:04:48.5]} 6. Bd3 {[%clk 0:04:38.3]} 6... Nf6 {[%clk 0:04:45.2]}
7. g4 {[%clk 0:04:33.1]} 7... Qd6 {[%clk 0:04:44.1]} 8. Qf3 {[%clk 0:04:28.2]}
8... c5 {[%clk 0:04:42.5]} 9. dxc5 {[%clk 0:04:20.6]} 9... Qxc5 {[%clk
0:04:41.8]} 10. O-O-O {[%clk 0:04:15]} 10... Nc6 {[%clk 0:04:40.2]} 11. g5
{[%clk 0:04:09.3]} 11... Nd7 {[%clk 0:04:37.9]} 12. a3 {[%clk 0:03:52.3]} 12...
b5 {[%clk 0:04:34.8]} 13. Qe3 {[%clk 0:03:51]} 13... Bb7 {[%clk 0:04:30.9]} 14.
Qxc5 {[%clk 0:03:49.7]} 14... Nxc5 {[%clk 0:04:29.8]} 15. Nf3 {[%clk 0:03:39.7]}
15... Nxd3+ {[%clk 0:04:23.3]} 16. Rxd3 {[%clk 0:03:36.4]} 16... h6 {[%clk
0:04:22.8]} 17. Re1 {[%clk 0:03:29.7]} 17... hxg5 {[%clk 0:04:20.1]} 18. Nxd5
{[%clk 0:03:24.1]} 18... O-O-O {[%clk 0:04:15.7]} 19. Nb4 {[%clk 0:03:04.2]}
19... Nxb4 {[%clk 0:04:06.7]} 20. Rxd8+ {[%clk 0:03:02.7]} 20... Rxd8 {[%clk
0:04:02.7]} 21. axb4 {[%clk 0:03:02.6]} 21... gxf4 {[%clk 0:04:01.8]} 22. Ne5
{[%clk 0:02:57.1]} 22... f6 {[%clk 0:03:58.4]} 23. Nd3 {[%clk 0:02:49.6]} 23...
e5 {[%clk 0:03:57.2]} 24. Rg1 {[%clk 0:02:48.8]} 24... g5 {[%clk 0:03:55.4]} 25.
Kd2 {[%clk 0:02:38.9]} 25... e4 {[%clk 0:03:52.7]} 0-1

[Event "Live Chess"]
[Site "Chess.com"]
[Date "2023.05.21"]
[Round "-"]
[White "jumush"]
[Black "mach247"]
[Result "1-0"]
[WhiteElo "1775"]
[BlackElo "1339"]
[TimeControl "300"]
[EndTime "4:41:24 PDT"]
[Termination "jumush won by resignation"]

1. e4 {[%clk 0:04:54.6]} 1... d5 {[%clk 0:04:59]} 2. exd5 {[%clk 0:04:52.9]}
2... Qxd5 {[%clk 0:04:58.9]} 3. Nf3 {[%clk 0:04:51.1]} 3... Bg4 {[%clk
0:04:56.6]} 4. Be2 {[%clk 0:04:49.8]} 4... Nc6 {[%clk 0:04:55.4]} 5. O-O {[%clk
0:04:44.1]} 5... O-O-O {[%clk 0:04:54.3]} 6. Re1 {[%clk 0:04:32.7]} 6... Nf6
{[%clk 0:04:43.6]} 7. c4 {[%clk 0:04:31]} 7... Qd7 {[%clk 0:04:41.9]} 8. Nc3
{[%clk 0:04:29.6]} 8... e6 {[%clk 0:04:38]} 9. a3 {[%clk 0:04:28]} 9... h5
{[%clk 0:04:32.7]} 10. b4 {[%clk 0:04:25.5]} 10... Kb8 {[%clk 0:04:10.6]} 11.
Rb1 {[%clk 0:04:22.7]} 11... h4 {[%clk 0:04:00.7]} 12. h3 {[%clk 0:04:18.6]}
12... Bf5 {[%clk 0:03:56.3]} 13. Rb2 {[%clk 0:04:14.6]} 13... Ne4 {[%clk
0:03:53.8]} 14. Nxe4 {[%clk 0:04:12.4]} 14... Bxe4 {[%clk 0:03:53.2]} 15. Qb3
{[%clk 0:04:06]} 15... Be7 {[%clk 0:03:38.9]} 16. Qe3 {[%clk 0:04:03.5]} 16...
f5 {[%clk 0:03:31.3]} 17. Rd1 {[%clk 0:04:00.2]} 17... Bf6 {[%clk 0:03:28]} 18.
d3 {[%clk 0:03:46.6]} 18... Bxf3 {[%clk 0:03:23.1]} 19. Qxf3 {[%clk 0:03:42.4]}
19... Bxb2 {[%clk 0:03:21.2]} 20. Bxb2 {[%clk 0:03:40.9]} 20... Rhg8 {[%clk
0:03:18.1]} 21. d4 {[%clk 0:03:36.4]} 21... g5 {[%clk 0:03:14.8]} 22. Qc3 {[%clk
0:03:30.3]} 22... g4 {[%clk 0:03:09.1]} 23. hxg4 {[%clk 0:03:28.2]} 23... fxg4
{[%clk 0:03:08.2]} 24. b5 {[%clk 0:03:27.1]} 24... Ne7 {[%clk 0:02:51.5]} 25. a4
{[%clk 0:03:24.7]} 25... g3 {[%clk 0:02:42.1]} 26. Bf3 {[%clk 0:03:18.4]} 26...
gxf2+ {[%clk 0:02:40.3]} 27. Kxf2 {[%clk 0:03:16.9]} 27... Qd6 {[%clk
0:02:24.8]} 28. a5 {[%clk 0:03:08.5]} 28... Qg3+ {[%clk 0:02:23.6]} 29. Kg1
{[%clk 0:03:06.5]} 29... h3 {[%clk 0:02:22.8]} 30. Rd2 {[%clk 0:03:05.2]} 30...
hxg2 {[%clk 0:02:02.1]} 31. Rxg2 {[%clk 0:02:58.9]} 31... Qh3 {[%clk 0:01:55]}
32. a6 {[%clk 0:02:55.4]} 32... Rxg2+ {[%clk 0:01:54.2]} 33. Bxg2 {[%clk
0:02:53.9]} 33... Rg8 {[%clk 0:01:51.4]} 34. Qxh3 {[%clk 0:02:51.7]} 1-0

[Event "Live Chess"]
[Site "Chess.com"]
[Date "2023.05.21"]
[Round "-"]
[White "booktrunk"]
[Black "Abde2012"]
[Result "1-0"]
[WhiteElo "1281"]
[BlackElo "751"]
[TimeControl "300"]
[EndTime "4:41:33 PDT"]
[Termination "booktrunk won by resignation"]

1. d4 {[%clk 0:04:59.2]} 1... c6 {[%clk 0:04:52.4]} 2. h3 {[%clk 0:04:57.8]}
2... d5 {[%clk 0:04:51.6]} 3. Bf4 {[%clk 0:04:56.4]} 3... Bf5 {[%clk 0:04:48.9]}
4. Nc3 {[%clk 0:04:54.7]} 4... e6 {[%clk 0:04:43.6]} 5. Nf3 {[%clk 0:04:52.9]}
5... Nf6 {[%clk 0:04:42.7]} 6. g4 {[%clk 0:04:46.6]} 6... Be4 {[%clk 0:04:39.6]}
7. Nxe4 {[%clk 0:04:44.2]} 7... Nxe4 {[%clk 0:04:39.1]} 8. Ne5 {[%clk
0:04:42.5]} 8... Bd6 {[%clk 0:04:34.2]} 9. f3 {[%clk 0:04:40.9]} 9... Bxe5
{[%clk 0:04:29.3]} 10. Bxe5 {[%clk 0:04:37.6]} 10... Nd6 {[%clk 0:04:26.6]} 11.
Bxg7 {[%clk 0:04:34.5]} 11... Rg8 {[%clk 0:04:25.8]} 12. Be5 {[%clk 0:04:32.9]}
12... Na6 {[%clk 0:04:21.6]} 13. Qd3 {[%clk 0:04:31.7]} 13... Nb4 {[%clk
0:04:20.4]} 14. Qxh7 {[%clk 0:04:23.7]} 14... Nxc2+ {[%clk 0:04:14.4]} 15. Qxc2
{[%clk 0:04:14.6]} 15... Nc4 {[%clk 0:04:08.4]} 16. Qh7 {[%clk 0:04:07.2]} 1-0

[Event "Live Chess"]
[Site "Chess.com"]
[Date "2023.05.21"]
[Round "-"]
[White "JoeRoot66"]
[Black "AbilifyXL"]
[Result "0-1"]
[WhiteElo "1909"]
[BlackElo "1954"]
[TimeControl "300"]
[EndTime "4:41:38 PDT"]
[Termination "AbilifyXL won by resignation"]

1. g3 {[%clk 0:04:58.4]} 1... d5 {[%clk 0:04:59.5]} 2. Bg2 {[%clk 0:04:58.3]}
2... c6 {[%clk 0:04:52.4]} 3. c4 {[%clk 0:04:57.7]} 3... Nf6 {[%clk 0:04:51.5]}
4. Nc3 {[%clk 0:04:56.8]} 4... e6 {[%clk 0:04:49.2]} 5. d4 {[%clk 0:04:55.8]}
5... Be7 {[%clk 0:04:48.4]} 6. Nf3 {[%clk 0:04:53.8]} 6... O-O {[%clk
0:04:47.4]} 7. O-O {[%clk 0:04:53.3]} 7... b6 {[%clk 0:04:46.2]} 8. b3 {[%clk
0:04:49.4]} 8... Ba6 {[%clk 0:04:44.9]} 9. Ne5 {[%clk 0:04:42.6]} 9... Nfd7
{[%clk 0:04:39.4]} 10. cxd5 {[%clk 0:04:38.5]} 10... Nxe5 {[%clk 0:04:32]} 11.
dxe5 {[%clk 0:04:38.4]} 11... cxd5 {[%clk 0:04:27.1]} 12. Bb2 {[%clk 0:04:37.3]}
12... Nc6 {[%clk 0:04:25]} 13. Re1 {[%clk 0:04:31.3]} 13... Rc8 {[%clk
0:04:17.4]} 14. Rc1 {[%clk 0:04:27.2]} 14... Qd7 {[%clk 0:04:00.5]} 15. f4
{[%clk 0:04:11]} 15... Rfd8 {[%clk 0:03:58.4]} 16. Qd2 {[%clk 0:04:04.9]} 16...
Bb4 {[%clk 0:03:48.8]} 17. a3 {[%clk 0:04:02.5]} 17... Be7 {[%clk 0:03:41.6]}
18. b4 {[%clk 0:03:59.7]} 18... Bc4 {[%clk 0:03:32.1]} 19. e4 {[%clk 0:03:55.7]}
19... b5 {[%clk 0:03:14.7]} 20. exd5 {[%clk 0:03:53.1]} 20... exd5 {[%clk
0:03:13.9]} 21. Red1 {[%clk 0:03:50.7]} 21... d4 {[%clk 0:03:08.2]} 22. Ne4
{[%clk 0:03:47.7]} 22... d3 {[%clk 0:03:05.8]} 23. Bf1 {[%clk 0:03:45.1]} 23...
Qd5 {[%clk 0:02:59.7]} 24. Qe3 {[%clk 0:03:41]} 24... a5 {[%clk 0:02:47.3]} 25.
Bg2 {[%clk 0:03:38.2]} 25... Qe6 {[%clk 0:02:22.2]} 26. Nc5 {[%clk 0:03:31.4]}
26... Bxc5 {[%clk 0:02:20.8]} 27. bxc5 {[%clk 0:03:29.7]} 27... h6 {[%clk
0:02:03.3]} 28. Be4 {[%clk 0:03:27.1]} 28... Rd7 {[%clk 0:01:57.5]} 29. Bxd3
{[%clk 0:03:24.9]} 29... Bxd3 {[%clk 0:01:56.1]} 30. Rxd3 {[%clk 0:03:23.8]}
30... Rxd3 {[%clk 0:01:54.1]} 31. Qxd3 {[%clk 0:03:23.7]} 31... b4 {[%clk
0:01:51.2]} 32. Qd6 {[%clk 0:03:19.8]} 32... Qb3 {[%clk 0:01:47.2]} 33. Qd2
{[%clk 0:03:04.2]} 33... bxa3 {[%clk 0:01:40.7]} 34. Bc3 {[%clk 0:02:59.5]}
34... Nb4 {[%clk 0:01:30]} 35. Bxb4 {[%clk 0:02:51.9]} 35... axb4 {[%clk
0:01:28.3]} 36. c6 {[%clk 0:02:47.4]} 36... a2 {[%clk 0:01:18.5]} 37. Ra1 {[%clk
0:02:35.5]} 37... Qb1+ {[%clk 0:01:11.8]} 38. Qd1 {[%clk 0:02:30.3]} 38... Qxd1+
{[%clk 0:01:09.6]} 39. Rxd1 {[%clk 0:02:28.9]} 39... Rxc6 {[%clk 0:01:08]} 40.
Ra1 {[%clk 0:02:27.5]} 40... b3 {[%clk 0:01:06.9]} 0-1

[Event "Live Chess"]
[Site "Chess.com"]
[Date "2023.05.21"]
[Round "-"]
[White "DoYouLikeCurry"]
[Black "JoRoSaR"]
[Result "1-0"]
[WhiteElo "1437"]
[BlackElo "1694"]
[TimeControl "300"]
[EndTime "4:41:41 PDT"]
[Termination "DoYouLikeCurry won by resignation"]

1. e4 {[%clk 0:04:57.7]} 1... c5 {[%clk 0:04:59.3]} 2. Nc3 {[%clk 0:04:56.5]}
2... Nc6 {[%clk 0:04:58.8]} 3. f4 {[%clk 0:04:56.1]} 3... d6 {[%clk 0:04:57.6]}
4. Bc4 {[%clk 0:04:54]} 4... e6 {[%clk 0:04:56.4]} 5. Nf3 {[%clk 0:04:51.7]}
5... Be7 {[%clk 0:04:53.2]} 6. O-O {[%clk 0:04:48.8]} 6... Nf6 {[%clk
0:04:52.6]} 7. d3 {[%clk 0:04:42.3]} 7... d5 {[%clk 0:04:51.9]} 8. Bb5 {[%clk
0:04:40]} 8... a6 {[%clk 0:04:50.6]} 9. Bxc6+ {[%clk 0:04:38]} 9... bxc6 {[%clk
0:04:50]} 10. e5 {[%clk 0:04:20.7]} 10... Nd7 {[%clk 0:04:46]} 11. Qe1 {[%clk
0:04:16.4]} 11... O-O {[%clk 0:04:35.5]} 12. Qg3 {[%clk 0:04:15.5]} 12... f6
{[%clk 0:04:34.2]} 13. f5 {[%clk 0:04:05.1]} 13... exf5 {[%clk 0:04:31.7]} 14.
Bh6 {[%clk 0:04:00.7]} 14... g6 {[%clk 0:04:21.3]} 15. e6 {[%clk 0:03:56]} 15...
Nb6 {[%clk 0:04:16.2]} 16. Bxf8 {[%clk 0:03:52.8]} 16... Bxf8 {[%clk 0:04:15.5]}
17. Rae1 {[%clk 0:03:45.3]} 17... Be7 {[%clk 0:04:14.5]} 18. Nh4 {[%clk
0:03:37]} 18... Kf8 {[%clk 0:04:10.7]} 19. Nxg6+ {[%clk 0:03:26.9]} 19... hxg6
{[%clk 0:04:08.4]} 20. Qxg6 {[%clk 0:03:26.8]} 20... Qe8 {[%clk 0:04:06.8]} 21.
Qxf5 {[%clk 0:03:21.8]} 21... c4 {[%clk 0:04:02.1]} 22. g4 {[%clk 0:03:15.2]}
22... cxd3 {[%clk 0:03:59.2]} 23. cxd3 {[%clk 0:03:09.4]} 23... Bd8 {[%clk
0:03:58.4]} 24. g5 {[%clk 0:03:06.1]} 24... Qh5 {[%clk 0:03:54.6]} 25. gxf6
{[%clk 0:03:01.3]} 25... Qxf5 {[%clk 0:03:52.5]} 26. Rxf5 {[%clk 0:02:59.8]}
26... Ra7 {[%clk 0:03:28.4]} 27. e7+ {[%clk 0:02:55.7]} 27... Bxe7 {[%clk
0:03:27.5]} 28. fxe7+ {[%clk 0:02:54.2]} 28... Ke8 {[%clk 0:03:26.5]} 29. Rf8+
{[%clk 0:02:52.2]} 1-0

[Event "Live Chess"]
[Site "Chess.com"]
[Date "2023.05.21"]
[Round "-"]
[White "KeithArkell"]
[Black "CheckThis4"]
[Result "1/2-1/2"]
[WhiteElo "2487"]
[BlackElo "2508"]
[TimeControl "300"]
[EndTime "4:41:50 PDT"]
[Termination "Game drawn by agreement"]

1. d4 {[%clk 0:04:58.9]} 1... Nf6 {[%clk 0:04:55.7]} 2. Nf3 {[%clk 0:04:57.7]}
2... e6 {[%clk 0:04:51.7]} 3. c4 {[%clk 0:04:56.9]} 3... c5 {[%clk 0:04:43.9]}
4. d5 {[%clk 0:04:55.6]} 4... b5 {[%clk 0:04:43]} 5. Bg5 {[%clk 0:04:53.7]} 5...
exd5 {[%clk 0:04:35.4]} 6. cxd5 {[%clk 0:04:46.9]} 6... d6 {[%clk 0:04:33.4]} 7.
e4 {[%clk 0:04:41]} 7... a6 {[%clk 0:04:31.7]} 8. a4 {[%clk 0:04:39.9]} 8... b4
{[%clk 0:04:29.9]} 9. a5 {[%clk 0:04:37.1]} 9... Be7 {[%clk 0:04:27.6]} 10. Nbd2
{[%clk 0:04:14]} 10... O-O {[%clk 0:04:26]} 11. Bxf6 {[%clk 0:03:56.9]} 11...
Bxf6 {[%clk 0:04:24.4]} 12. Nc4 {[%clk 0:03:56]} 12... Bd7 {[%clk 0:03:59.5]}
13. Bd3 {[%clk 0:03:50.5]} 13... Bb5 {[%clk 0:03:58.2]} 14. Qc2 {[%clk
0:03:47.4]} 14... Nd7 {[%clk 0:03:47.5]} 15. O-O {[%clk 0:03:46.2]} 15... Qe7
{[%clk 0:03:38.4]} 16. Rfe1 {[%clk 0:03:43.7]} 16... Rae8 {[%clk 0:03:34.9]} 17.
Rad1 {[%clk 0:03:27]} 17... Ne5 {[%clk 0:03:11.6]} 18. Nfxe5 {[%clk 0:03:25.5]}
18... Bxe5 {[%clk 0:03:10.9]} 19. Nxe5 {[%clk 0:03:18.9]} 19... Qxe5 {[%clk
0:03:10.8]} 20. g3 {[%clk 0:03:04.8]} 20... Rc8 {[%clk 0:02:43.7]} 21. b3 {[%clk
0:03:02.4]} 21... Rfe8 {[%clk 0:02:29.5]} 22. Kg2 {[%clk 0:02:58]} 1/2-1/2

[Event "Live Chess"]
[Site "Chess.com"]
[Date "2023.05.21"]
[Round "-"]
[White "Doge_Dandolo"]
[Black "Sweet-O"]
[Result "1-0"]
[WhiteElo "1889"]
[BlackElo "1426"]
[TimeControl "300"]
[EndTime "4:41:52 PDT"]
[Termination "Doge_Dandolo won by resignation"]

1. Nf3 {[%clk 0:04:51.4]} 1... e5 {[%clk 0:04:57.8]} 2. Nxe5 {[%clk 0:04:49.7]}
2... Nc6 {[%clk 0:04:57.1]} 3. Nxc6 {[%clk 0:04:48.4]} 3... dxc6 {[%clk
0:04:57]} 4. d4 {[%clk 0:04:47.4]} 4... Nf6 {[%clk 0:04:56.2]} 5. Nc3 {[%clk
0:04:45.9]} 5... c5 {[%clk 0:04:53.4]} 6. e3 {[%clk 0:04:38.8]} 6... Be7 {[%clk
0:04:51.5]} 7. Be2 {[%clk 0:04:34.2]} 7... O-O {[%clk 0:04:49.4]} 8. Bf3 {[%clk
0:04:33.2]} 8... cxd4 {[%clk 0:04:43.9]} 9. exd4 {[%clk 0:04:30.5]} 9... Re8
{[%clk 0:04:41.5]} 10. O-O {[%clk 0:04:29.4]} 10... Bd6 {[%clk 0:04:31.5]} 11.
g3 {[%clk 0:04:21.6]} 11... Bh3 {[%clk 0:04:25.3]} 12. Bg2 {[%clk 0:04:20.7]}
12... Bg4 {[%clk 0:04:22.5]} 13. Qd3 {[%clk 0:04:13.5]} 13... c5 {[%clk
0:04:05.3]} 14. Bg5 {[%clk 0:04:10.7]} 14... cxd4 {[%clk 0:03:54.8]} 15. Qxd4
{[%clk 0:04:04.8]} 15... h6 {[%clk 0:03:37.2]} 16. Bxf6 {[%clk 0:04:03.2]} 16...
Qxf6 {[%clk 0:03:34.6]} 17. Qxg4 {[%clk 0:03:58.8]} 17... Re5 {[%clk 0:03:23.3]}
18. Ne4 {[%clk 0:03:50]} 18... Qe7 {[%clk 0:03:16.4]} 19. Nxd6 {[%clk
0:03:48.5]} 19... Qxd6 {[%clk 0:03:16.3]} 20. Rad1 {[%clk 0:03:45.1]} 20... Qf6
{[%clk 0:03:09.7]} 21. c3 {[%clk 0:03:33.4]} 21... Rg5 {[%clk 0:03:06.9]} 22.
Qd4 {[%clk 0:03:31.6]} 22... Qe7 {[%clk 0:03:02.6]} 23. Rfe1 {[%clk 0:03:27.7]}
23... Qc7 {[%clk 0:02:59.9]} 24. Qd7 {[%clk 0:03:21.3]} 24... Qb6 {[%clk
0:02:57.5]} 25. Qxb7 {[%clk 0:03:19.2]} 1-0

[Event "Live Chess"]
[Site "Chess.com"]
[Date "2023.05.21"]
[Round "-"]
[White "YrrriKharkiv"]
[Black "Long1968"]
[Result "1-0"]
[WhiteElo "2067"]
[BlackElo "959"]
[TimeControl "300"]
[EndTime "4:41:58 PDT"]
[Termination "YrrriKharkiv won on time"]

1. d4 {[%clk 0:04:51.8]} 1... Nf6 {[%clk 0:04:56.3]} 2. Nf3 {[%clk 0:04:51.1]}
2... g6 {[%clk 0:04:53.5]} 3. c4 {[%clk 0:04:50.5]} 3... Bg7 {[%clk 0:04:50.5]}
4. Nc3 {[%clk 0:04:49.3]} 4... d6 {[%clk 0:04:46.4]} 5. h3 {[%clk 0:04:48.2]}
5... c5 {[%clk 0:04:37]} 6. dxc5 {[%clk 0:04:40.8]} 6... Qa5 {[%clk 0:04:31.6]}
7. cxd6 {[%clk 0:04:37.1]} 7... Ne4 {[%clk 0:04:23.7]} 8. Bd2 {[%clk 0:04:36.3]}
8... Nxc3 {[%clk 0:04:11.4]} 9. Bxc3 {[%clk 0:04:33.3]} 9... Bxc3+ {[%clk
0:04:06.4]} 10. bxc3 {[%clk 0:04:32.9]} 10... Qxc3+ {[%clk 0:04:03]} 11. Nd2
{[%clk 0:04:32.1]} 11... exd6 {[%clk 0:03:56.5]} 12. Rc1 {[%clk 0:04:28.1]}
12... Qa5 {[%clk 0:03:47.4]} 13. e3 {[%clk 0:04:19.5]} 13... O-O {[%clk
0:03:34.9]} 14. Be2 {[%clk 0:04:14.6]} 14... Nc6 {[%clk 0:03:28.2]} 15. O-O
{[%clk 0:04:08.9]} 15... Be6 {[%clk 0:03:11.2]} 16. Nf3 {[%clk 0:03:57.5]} 16...
Rad8 {[%clk 0:02:59.4]} 17. Qb3 {[%clk 0:03:49.4]} 17... Qc7 {[%clk 0:02:29.5]}
18. Nd4 {[%clk 0:03:40.3]} 18... d5 {[%clk 0:01:55.6]} 19. Nxe6 {[%clk
0:03:36.1]} 19... fxe6 {[%clk 0:01:53.1]} 20. cxd5 {[%clk 0:03:35.1]} 20... exd5
{[%clk 0:01:46]} 21. Bf3 {[%clk 0:03:28.1]} 21... Qd7 {[%clk 0:00:42.2]} 22.
Rcd1 {[%clk 0:03:08]} 22... Ne7 {[%clk 0:00:19.1]} 23. Bg4 {[%clk 0:02:56]}
23... Qc6 {[%clk 0:00:08.5]} 24. Rd2 {[%clk 0:02:51.7]} 1-0

[Event "Live Chess"]
[Site "Chess.com"]
[Date "2023.05.21"]
[Round "-"]
[White "FlorinHristea"]
[Black "Sir_Sigmund"]
[Result "0-1"]
[WhiteElo "1808"]
[BlackElo "1926"]
[TimeControl "300"]
[EndTime "4:42:17 PDT"]
[Termination "Sir_Sigmund won - game abandoned"]

1. e4 {[%clk 0:04:56.1]} 1... e5 {[%clk 0:04:57.1]} 2. Nc3 {[%clk 0:04:54.3]}
2... Bc5 {[%clk 0:04:54.9]} 3. Bc4 {[%clk 0:04:53.2]} 3... Nf6 {[%clk
0:04:52.9]} 4. d3 {[%clk 0:04:49.6]} 4... d6 {[%clk 0:04:50.3]} 5. Bg5 {[%clk
0:04:49.2]} 5... a6 {[%clk 0:04:48.7]} 6. Nf3 {[%clk 0:04:48.5]} 6... Nbd7
{[%clk 0:04:44.5]} 7. O-O {[%clk 0:04:46.6]} 7... h6 {[%clk 0:04:43.6]} 8. Bh4
{[%clk 0:04:45.6]} 8... g5 {[%clk 0:04:40.3]} 9. Bg3 {[%clk 0:04:44.5]} 9... c6
{[%clk 0:04:32.9]} 10. d4 {[%clk 0:04:43.6]} 10... exd4 {[%clk 0:04:22.7]} 11.
Nxd4 {[%clk 0:04:41.6]} 11... Ne5 {[%clk 0:04:14.9]} 12. Bxe5 {[%clk 0:04:37.2]}
12... dxe5 {[%clk 0:04:11.9]} 13. Nb3 {[%clk 0:04:33.4]} 13... Qxd1 {[%clk
0:04:04.2]} 14. Raxd1 {[%clk 0:04:33.3]} 14... Be7 {[%clk 0:03:56.6]} 15. f3
{[%clk 0:04:26.2]} 15... b5 {[%clk 0:03:54.1]} 16. Be2 {[%clk 0:04:23.3]} 16...
a5 {[%clk 0:03:38.1]} 17. a4 {[%clk 0:04:21.7]} 17... b4 {[%clk 0:03:33.4]} 18.
Nb1 {[%clk 0:04:19.6]} 18... Be6 {[%clk 0:03:25.7]} 19. N1d2 {[%clk 0:04:18.1]}
19... Nh5 {[%clk 0:03:21]} 20. Bc4 {[%clk 0:04:15.3]} 20... O-O {[%clk
0:02:57.2]} 21. Bxe6 {[%clk 0:04:13.8]} 21... fxe6 {[%clk 0:02:56.2]} 22. Nc4
{[%clk 0:04:13.7]} 22... Rad8 {[%clk 0:02:42.8]} 23. Nxe5 {[%clk 0:04:09.7]}
23... Rxd1 {[%clk 0:02:20.7]} 24. Rxd1 {[%clk 0:04:09.6]} 24... c5 {[%clk
0:02:17.5]} 25. Nxa5 {[%clk 0:04:01.3]} 25... Kg7 {[%clk 0:02:06.9]} 26. Nac4
{[%clk 0:03:56.4]} 26... Bf6 {[%clk 0:02:02]} 27. Nd7 {[%clk 0:03:47.5]} 27...
Rd8 {[%clk 0:01:59.3]} 28. b3 {[%clk 0:03:06.2]} 28... Bd4+ {[%clk 0:01:56.8]}
29. Kf1 {[%clk 0:03:03.3]} 29... Rxd7 {[%clk 0:01:55.8]} 30. Ke2 {[%clk
0:02:59.1]} 30... Nf4+ {[%clk 0:01:48.6]} 31. Kf1 {[%clk 0:02:58]} 31... Kf6
{[%clk 0:01:33.4]} 32. g3 {[%clk 0:02:57.5]} 32... Ng6 {[%clk 0:01:26.3]} 33.
Ke2 {[%clk 0:02:56.5]} 33... Ke7 {[%clk 0:01:23.3]} 34. h3 {[%clk 0:02:52.1]}
34... Ne5 {[%clk 0:01:21.3]} 35. f4 {[%clk 0:02:50.6]} 35... Nxc4 {[%clk
0:01:18.7]} 36. bxc4 {[%clk 0:02:50.1]} 36... Bf6 {[%clk 0:01:15.6]} 37. Rxd7+
{[%clk 0:02:44.8]} 37... Kxd7 {[%clk 0:01:15.5]} 38. Kd3 {[%clk 0:02:42.7]}
38... Kc6 {[%clk 0:01:09]} 39. e5 {[%clk 0:02:41.8]} 39... Bd8 {[%clk
0:01:05.4]} 40. c3 {[%clk 0:02:40.1]} 40... Kb6 {[%clk 0:00:59.9]} 41. Kc2
{[%clk 0:02:39]} 41... Ka5 {[%clk 0:00:59.2]} 42. Kb3 {[%clk 0:02:38.9]} 42...
gxf4 {[%clk 0:00:56.9]} 43. gxf4 {[%clk 0:02:36.7]} 43... Bh4 {[%clk 0:00:56]}
44. cxb4+ {[%clk 0:02:34.5]} 44... cxb4 {[%clk 0:00:52.6]} 45. c5 {[%clk
0:02:33.5]} 45... Bg3 {[%clk 0:00:47.7]} 46. c6 {[%clk 0:02:31]} 46... Kb6
{[%clk 0:00:45.4]} 47. c7 {[%clk 0:02:28.8]} 47... Kxc7 {[%clk 0:00:44.5]} 48.
Kxb4 {[%clk 0:02:28.7]} 48... Bxf4 {[%clk 0:00:43.9]} 49. Kb5 {[%clk 0:02:28.2]}
49... Bxe5 {[%clk 0:00:43.2]} 50. a5 {[%clk 0:02:27.9]} 50... Kb7 {[%clk
0:00:36.1]} 51. a6+ {[%clk 0:02:26.9]} 51... Ka7 {[%clk 0:00:34.7]} 52. Kc5
{[%clk 0:02:26.6]} 52... Bg3 {[%clk 0:00:32]} 53. Kd4 {[%clk 0:02:25.6]} 53...
e5+ {[%clk 0:00:31]} 54. Ke4 {[%clk 0:02:25.4]} 54... Kxa6 {[%clk 0:00:29.9]}
55. Kf3 {[%clk 0:02:25.3]} 55... Bf4 {[%clk 0:00:28.9]} 56. h4 {[%clk
0:02:24.2]} 56... Kb5 {[%clk 0:00:28.8]} 57. h5 {[%clk 0:02:23.8]} 57... Kc5
{[%clk 0:00:28.4]} 58. Ke4 {[%clk 0:02:23.7]} 58... Kd6 {[%clk 0:00:27.5]} 59.
Kf5 {[%clk 0:02:23.1]} 59... Kd5 {[%clk 0:00:25.4]} 60. Kg4 {[%clk 0:02:22.8]}
60... Ke4 {[%clk 0:00:24.2]} 61. Kh3 {[%clk 0:02:22.2]} 61... Kf3 {[%clk
0:00:23.3]} 62. Kh4 {[%clk 0:02:21.1]} 62... e4 {[%clk 0:00:21.9]} 63. Kh3
{[%clk 0:02:21]} 63... e3 {[%clk 0:00:21.2]} 0-1